fUSD/lending_fUSD_20240913
["ID","MTS","AMOUNT","RATE_DAILY","PERIOD"]
[338011852,1726236638479,-411.29,0.00013,2]
[338011853,1726236638489,-999.48,0.00013,2]
[338011854,1726236638498,-1664.80472325,0.00013013,2]
[338011855,1726236638508,-167.0,0.00013141,2]
[338011856,1726236638517,-12209.0519,0.00013183,2]
[338011857,1726236638527,-150.0,0.00013184,2]
[338011858,1726236638536,-152.0,0.00013283,3]
[338011859,1726236638545,-167.0,0.00013363,2]
[338011860,1726236638554,-664.82443,0.0001341,2]
[338011861,1726236638564,-169.9,0.00013497,2]
[338011862,1726236638574,-167.0,0.00013561,2]
[338011863,1726236638583,-671.77103829,0.00013582,2]
[338011864,1726236638597,-124.22896171,0.00013582,2]
[338011865,1726236638606,-796.0,0.00013582,2]
[338011866,1726236638616,-171.83,0.00013699,2]
[338011867,1726236638626,-156.48,0.00013699,2]
[338011868,1726236638635,-2751.0,0.00013699,2]
[338011869,1726236638645,-200.0,0.00013699,2]
[338011870,1726236638655,-22817.2,0.000137,2]
[338011871,1726236638665,-463.8706,0.000137,2]
[338011872,1726236638674,-1000.0,0.0001373,2]
[338011873,1726236638683,-211.36,0.00013757,2]
[338011874,1726236638692,-500.0,0.00013794,2]
[338011875,1726236638702,-500.0,0.00013794,2]
[338011876,1726236638711,-500.0,0.00013794,2]
[338011877,1726236638721,-646.46,0.00013794,2]
[338011878,1726236638730,-500.0,0.00013794,2]
[338011879,1726236638740,-500.0,0.00013794,2]
[338011880,1726236638749,-500.0,0.00013794,2]
[338011881,1726236638759,-500.0,0.00013794,2]
[338011882,1726236638768,-403.99374313,0.00013794,2]
[338011883,1726236638791,-96.00625687,0.00013794,2]
[338011884,1726236638801,-500.0,0.00013794,2]
[338011885,1726236638810,-500.0,0.00013794,2]
[338011886,1726236638820,-500.0,0.00013794,2]
[338011887,1726236638829,-163.47509441,0.00013794,2]
[338011888,1726236638842,-336.52490559,0.00013794,2]
[338011889,1726236638851,-500.0,0.00013794,2]
[338011890,1726236638860,-500.0,0.00013794,2]
[338011891,1726236638870,-588.07,0.00013794,2]
[338011892,1726236638879,-500.0,0.00013904,2]
[338011893,1726236638888,-427.78945483,0.00013907,2]
[338011894,1726236638900,-1285.8063095,0.00013907,2]
[338011895,1726236638915,-399.35491428,0.00013907,2]
[338011896,1726236638927,-795.2682055,0.00013907,2]
[338011899,1726236638938,-1007.38297438,0.00013907,2]
[338011901,1726236638949,-343.85707999,0.00013907,2]
[338011905,1726236638985,-1099.08891086,0.00013907,2]
[338011907,1726236638995,-179.88484136,0.00013917,2]
[338011909,1726236639004,-304.437781,0.00013973,2]
[338011911,1726236639014,-167.0,0.00013981,2]
[338011913,1726236639024,-4785.7008857,0.00014,6]
[338012035,1726236640425,-26678.60016193,0.00014,6]
[338012045,1726236640529,-1060.86500547,0.00014,6]
[338012047,1726236640541,-585.60833495,0.00014,6]
[338012049,1726236640552,-1541.46154776,0.00014,6]
[338012051,1726236640563,-798.0565955,0.00014,6]
[338012053,1726236640574,-328.47396994,0.00014,6]
[338012059,1726236640632,-496.07624443,0.00014,6]
[338012061,1726236640643,-270.59,0.00014,6]
[338012063,1726236640655,-588.950825,0.00014,6]
[338012065,1726236640668,-5307.9,0.00014,6]
[338012068,1726236640682,-711.24,0.00014,6]
[338012070,1726236640694,-296.13749415,0.00014,6]
[338012339,1726236643402,-69601.09999861,0.00014,6]
[338012341,1726236643414,-311.42,0.00014,6]
[338012402,1726236644186,-7250.94882884,0.00014,6]
[338012404,1726236644198,-742.23079619,0.00014,6]
[338012624,1726236646424,-497.86449831,0.000139,2]
[338012628,1726236646454,-1464.09275942,0.000139,2]
[338012641,1726236646580,-8441.433,0.000139,2]
[338012643,1726236646591,-1079.34562278,0.000139,2]
[338012645,1726236646605,-251.90315046,0.000139,2]
[338014627,1726236668057,500.0,0.00011164,2]
[338014721,1726236727494,500.0,0.00011164,2]
[338014722,1726236765359,500.0,0.00011164,2]
[338014723,1726236772599,500.0,0.00011164,2]
[338014724,1726236793354,1537.38303393,0.00012,2]
[338014725,1726236922790,-152.35,0.000149,31]
[338014726,1726236922828,-152.35,0.000149,31]
[338014727,1726236922864,-152.35,0.000149,31]
[338014728,1726236922900,-152.35,0.000149,31]
[338014729,1726236922936,-152.35,0.000149,31]
[338014730,1726236922971,-152.35,0.000149,31]
[338014731,1726236923005,-152.35,0.000149,31]
[338014732,1726236941236,627.09,0.00011404,2]
[338014733,1726237137672,1050.0,0.00011,2]
[338014734,1726237462019,177.28,0.00010959,2]
[338014735,1726237512884,125.41,0.000149,31]
[338014736,1726237522617,623.67,0.00011173,2]
[338014737,1726237529591,2850.0,0.000101,2]
[338014750,1726237831553,-31255.64096234,0.0001228,2]
[338014755,1726237831582,-5003.70250805,0.0001228,2]
[338014756,1726237831595,-36198.98283401,0.0001228,2]
[338014757,1726237831605,-600.0,0.00012847,2]
[338014758,1726237831615,-5445.45255563,0.000129,2]
[338014759,1726237831624,-2174.52296572,0.000129,2]
[338014760,1726237831634,-8903.33030834,0.000129,2]
[338014761,1726237831643,-369.72010306,0.000129,2]
[338014762,1726237831653,-5445.45255555,0.00012902,2]
[338014763,1726237831662,-5445.45255555,0.00012905,2]
[338014764,1726237831671,-5445.45255555,0.00012907,2]
[338014765,1726237831680,-5445.45255555,0.0001291,2]
[338014766,1726237831690,-5445.45255555,0.00012912,2]
[338014767,1726237831699,-5445.45255555,0.00012915,2]
[338014768,1726237831708,-5445.45255555,0.00012917,2]
[338014769,1726237831718,-5445.45255555,0.0001292,2]
[338014770,1726237831727,-250.0,0.00012921,2]
[338014771,1726237831736,-5445.45255555,0.00012922,2]
[338014772,1726237831746,-250.0,0.00012971,2]
[338014773,1726237831755,-500.0,0.00012973,2]
[338014774,1726237831765,-157.33,0.0001299,2]
[338014775,1726237831774,-157.33,0.0001299,2]
[338014776,1726237831784,-157.33,0.0001299,2]
[338014777,1726237831798,-500.0,0.00012999,2]
[338014778,1726237831808,-500.0,0.00012999,2]
[338014779,1726237831820,-500.0,0.00012999,2]
[338014780,1726237831829,-337.415803,0.00012999,2]
[338014781,1726237831839,-500.0,0.00012999,2]
[338014782,1726237831849,-500.0,0.00012999,2]
[338014783,1726237831859,-500.0,0.00012999,2]
[338014784,1726237831869,-500.0,0.00012999,2]
[338014785,1726237831878,-500.0,0.00012999,2]
[338014786,1726237831889,-500.0,0.00012999,2]
[338014787,1726237831898,-500.0,0.00012999,2]
[338014788,1726237831908,-291.81345587,0.00012999,2]
[338014789,1726237831917,-500.0,0.00012999,2]
[338014790,1726237831926,-369.45606584,0.00012999,2]
[338014791,1726237831935,-500.0,0.00012999,2]
[338014792,1726237831944,-500.0,0.00012999,2]
[338014793,1726237831955,-500.0,0.00012999,2]
[338014795,1726237831964,-500.0,0.00012999,2]
[338014797,1726237831974,-500.0,0.00012999,2]
[338014799,1726237831983,-607.80925034,0.00012999,2]
[338014801,1726237831993,-500.0,0.00012999,2]
[338014803,1726237832002,-500.0,0.00012999,2]
[338014805,1726237832011,-500.0,0.00012999,2]
[338014807,1726237832020,-500.0,0.00012999,2]
[338014809,1726237832030,-500.0,0.00012999,2]
[338014811,1726237832039,-500.0,0.00012999,2]
[338014813,1726237832054,-500.0,0.00012999,2]
[338014815,1726237832068,-500.0,0.00012999,2]
[338014816,1726237832077,-500.0,0.00012999,2]
[338014818,1726237832086,-500.0,0.00012999,2]
[338014820,1726237832096,-500.0,0.00012999,2]
[338014822,1726237832105,-500.0,0.00012999,2]
[338014824,1726237832115,-58395.26983796,0.00013,2]
[338014826,1726237832127,-6067.30875692,0.00013,2]
[338014829,1726237832138,-297.99594133,0.00013,2]
[338014831,1726237832150,-3689.03638344,0.00013,2]
[338014833,1726237832162,-4066.53555777,0.00013,2]
[338014835,1726237832174,-11078.19106301,0.00013,2]
[338014837,1726237832185,-3572.08712496,0.00013,2]
[338014839,1726237832197,-16853.4,0.00013,2]
[338014840,1726237832208,-3185.02759438,0.00013,2]
[338014841,1726237832224,-1117.22136038,0.00013,2]
[338014842,1726237832235,-360.55459039,0.00013,2]
[338014843,1726237832246,-3099.91875805,0.00013,2]
[338014844,1726237832257,-368.7704374,0.00013,2]
[338014845,1726237832270,-2375.16069498,0.00013,2]
[338014846,1726237832282,-3244.15518752,0.00013,2]
[338014847,1726237832294,-4318.1251668,0.00013,2]
[338014848,1726237832316,-4054.52126582,0.00013,2]
[338014849,1726237832328,-4796.58478385,0.00013,2]
[338014850,1726237832340,-2125.59593354,0.00013,2]
[338014851,1726237832359,-450.037073,0.00013,2]
[338014852,1726237832370,-261.15578167,0.00013,2]
[338014853,1726237832381,-517.85068696,0.00013,2]
[338014854,1726237832392,-3078.55932045,0.00013,2]
[338014855,1726237832408,-1193.6942558,0.00013,2]
[338014858,1726237837481,-767.54721912,0.00013,2]
[338014859,1726237837563,-22507.23312667,0.00013,2]
[338014860,1726237837575,-55498.09177121,0.00013,2]
[338014861,1726237837587,-16602.28958187,0.00013,2]
[338014862,1726237837598,-301.11415239,0.00013,2]
[338014863,1726237837608,-6904.82972179,0.00013,2]
[338014864,1726237837619,-486.81726003,0.00013,2]
[338014865,1726237837658,-28119.1141531,0.00013,2]
[338014866,1726237837669,-303.35364713,0.00013,2]
[338014867,1726237837680,-368.6898118,0.00013,2]
[338014868,1726237837691,-716.53939924,0.00013,2]
[338014869,1726237837702,-1041.07666733,0.00013,2]
[338014870,1726237837712,-10441.17998013,0.00013,2]
[338014871,1726237837723,-200604.30330072,0.00013,2]
[338014872,1726237837778,-2074.50000001,0.00013,2]
[338014873,1726237837791,-565.37577665,0.00013,2]
[338014874,1726237837811,-257.82237684,0.00013,2]
[338014875,1726237837822,-262090.87139729,0.00013,2]
[338014876,1726237837831,-370.16,0.00013,2]
[338014877,1726237837840,-1013.22,0.00013,2]
[338014878,1726237837850,-80987.22563895,0.00013,2]
[338014879,1726237837861,-21049.79701956,0.00013,2]
[338014880,1726237837873,-1173.65274454,0.00013,2]
[338014881,1726237837886,-280.407,0.00013,2]
[338014883,1726237837898,-426.35735425,0.00013,2]
[338014886,1726237837916,-363.48150408,0.00013,2]
[338014888,1726237837927,-4719.04930365,0.00013,2]
[338014890,1726237837939,-4538.33381839,0.00013,2]
[338014892,1726237837950,-7544.50302701,0.00013,2]
[338015068,1726237839603,-4439.59627426,0.00013,2]
[338015070,1726237839614,-1226.66149548,0.00013,2]
[338015072,1726237839630,-537.979002,0.00013,2]
[338015074,1726237839641,-26562.30521915,0.00013,2]
[338015077,1726237839652,-306.5521575,0.00013,2]
[338015079,1726237839664,-1730.32425122,0.00013,2]
[338015082,1726237839683,-10352.58655339,0.00013,2]
[338015094,1726237839796,-6383029.85975248,0.00013,2]
[338015096,1726237839810,-251692.89009982,0.00013,2]
[338015098,1726237839822,-228795.93175319,0.00013,2]
[338015368,1726237842574,-1001.27979034,0.00013,2]
[338015370,1726237842586,-647.46735558,0.00013,2]
[338015372,1726237842597,-1045.14,0.00013,2]
[338015374,1726237842609,-659.44059965,0.00013,2]
[338015376,1726237842620,-392.857998,0.00013,2]
[338015379,1726237842631,-732.88231691,0.00013,2]
[338015381,1726237842641,-12049.2324329,0.00013,2]
[338015383,1726237842652,-12178.28593014,0.00013,2]
[338015385,1726237842663,-11072.78688,0.00013,2]
[338015474,1726237843529,-875.16,0.00013,2]
[338015476,1726237843540,-536.28001313,0.00013,2]
[338015479,1726237843553,-30000.0,0.00013,2]
[338015481,1726237843568,-31386.70792399,0.00013,2]
[338015483,1726237843579,-519005.97409144,0.00013,2]
[338015485,1726237843590,-827.37773051,0.00013,2]
[338015487,1726237843601,-641.85958326,0.00013,2]
[338015490,1726237843613,-1417.06574112,0.00013,2]
[338015492,1726237843623,-2095.09900023,0.00013,2]
[338015494,1726237843634,-14829.77004963,0.00013,2]
[338015496,1726237843646,-2057.28,0.00013,2]
[338015500,1726237843671,-5203.47580105,0.00013,2]
[338015505,1726237843711,-302.23,0.00013,2]
[338015507,1726237843722,-300.1,0.00013,2]
[338015509,1726237843734,-307.38558639,0.00013,2]
[338015512,1726237843745,-274.264,0.00013,2]
[338015514,1726237843756,-309.865,0.00013,2]
[338015516,1726237843767,-2620920.91110359,0.00013,2]
[338015687,1726237845582,-1138.28203649,0.00013,2]
[338015689,1726237845593,-690.60504577,0.00013,2]
[338015691,1726237845604,-2635.15652636,0.00013,2]
[338015698,1726237845662,-270.462826,0.00013,2]
[338015700,1726237845673,-1748.9835148,0.00013,2]
[338015703,1726237845685,-926.66902096,0.00013,2]
[338015705,1726237845696,-1568.92074396,0.00013,2]
[338015707,1726237845707,-1073.61091901,0.00013,2]
[338015712,1726237845745,-1645.25893923,0.00013,2]
[338015714,1726237845756,-789.18618,0.00013,2]
[338015716,1726237845767,-3804.31656141,0.00013,2]
[338015718,1726237845779,-2192.36880359,0.00013,2]
[338015721,1726237845798,-257354.74939508,0.00013,2]
[338015724,1726237846017,-4506.06258621,0.00013,2]
[338015726,1726237846029,-1289.4108312,0.00013,2]
[338015728,1726237846040,-4337.18899245,0.00013,2]
[338015730,1726237846051,-6646.89595268,0.00013,2]
[338015732,1726237846064,-432.87434618,0.00013,2]
[338015734,1726237846075,-606.13570382,0.00013,2]
[338015737,1726237846085,-8563.99436159,0.00013,2]
[338015739,1726237846104,-1464.55339879,0.00013,2]
[338015742,1726237846114,-305.0,0.00013,2]
[338015744,1726237846128,-525.51887084,0.00013,2]
[338015746,1726237846140,-1221.72,0.00013,2]
[338015748,1726237846150,-456.80005735,0.00013,2]
[338015750,1726237846160,-515.25,0.00013,2]
[338015752,1726237846172,-1033.59720923,0.00013,2]
[338015754,1726237846183,-1710.75555846,0.00013,2]
[338015756,1726237846194,-1408.82174182,0.00013,2]
[338015759,1726237846205,-837.1615839,0.00013,2]
[338017643,1726238020831,500.0,0.00011164,2]
[338017644,1726238023448,648.48,0.00010593,2]
[338017645,1726238056471,155.4,0.00010959,2]
[338017646,1726238065620,500.0,0.00011164,2]
[338017647,1726238066113,500.0,0.00011164,2]
[338017648,1726238470750,1877.3211,0.0001208,2]
[338017649,1726238508597,16519.31,0.00012098,2]
[338017650,1726238528727,158.52,0.00012147,2]
[338017651,1726238559396,644.22,0.00010231,2]
[338017652,1726238593706,12820.72,0.00012149,2]
[338018028,1726238679081,250.0,0.00012113,2]
[338018029,1726238704110,152.84929507,0.00011688,2]
[338018030,1726238706551,150.00000021,0.00011688,2]
[338018031,1726238741347,250.0,0.000121,2]
[338018032,1726238769730,480.0,0.00012056,2]
[338018033,1726238787661,800000.0,0.0001215,2]
[338018034,1726238823290,250.0,0.00012099,2]
[338018035,1726238824814,3882.29,0.00012099,2]
[338018036,1726238857175,612465.58760802,0.00012164,2]
[338018037,1726238857201,578186.10276399,0.00012164,2]
[338018038,1726238857226,878786.30962799,0.00012164,2]
[338018040,1726239010966,-300.0,0.00012179,2]
[338018041,1726239010993,-2672.01918006,0.0001218,2]
[338018042,1726239011029,-2972.01918006,0.0001218,2]
[338018044,1726239011102,-2972.01918006,0.0001218,2]
[338018045,1726239011377,-1689.35529456,0.0001218,2]
[338018050,1726239031737,-2321.39855649,0.0001218,2]
[338018051,1726239031786,-436.64173545,0.0001218,2]
[338018052,1726239031827,-675.72687332,0.0001218,2]
[338018053,1726239031837,-3643.73,0.00012234,2]
[338018054,1726239031846,-520.0,0.00012345,2]
[338018055,1726239031855,-150.0,0.00012466,2]
[338018056,1726239031864,-4214.30673394,0.00012466,2]
[338018057,1726239031874,-644.22,0.00012495,2]
[338018058,1726239031883,-105.3221008,0.00012553,2]
[338018059,1726239031898,-575.21328161,0.00012553,2]
[338018089,1726239037766,-1316.66461759,0.00012553,2]
[338018090,1726239037776,-150.0,0.00012604,2]
[338018091,1726239037786,-28855.9,0.00012605,2]
[338018092,1726239037796,-3290.91528244,0.00012605,2]
[338018093,1726239037807,-14728.36471756,0.00012605,2]
[338018094,1726239037816,-249.49,0.00012605,2]
[338018095,1726239037826,-3320.97427527,0.00012605,2]
[338018096,1726239038070,-3363.64572473,0.00012605,2]
[338018097,1726239038080,-887.81,0.00012619,2]
[338018098,1726239038090,-499.99,0.00012619,2]
[338018099,1726239038100,-394.7977752,0.00012793,2]
[338018100,1726239038109,-3831.08134849,0.000128,2]
[338018101,1726239038121,-2997.45767357,0.000128,2]
[338018290,1726239040019,-1306.81277794,0.000128,2]
[338018292,1726239040029,-1257.5934,0.000128,2]
[338018294,1726239040039,-3683.6509,0.000128,2]
[338018296,1726239040048,-5277.53835378,0.00012899,2]
[338018298,1726239040058,-63702.8005,0.000129,2]
[338018299,1726239040067,-7999.7533,0.000129,2]
[338018301,1726239040077,-31877.6146,0.000129,2]
[338018303,1726239040086,-479.0013,0.000129,2]
[338018305,1726239040097,-1391.9473,0.000129,2]
[338018307,1726239040107,-172.8445,0.000129,2]
[338018309,1726239040117,-7500.0,0.000129,2]
[338018311,1726239040126,-157.39923619,0.000129,2]
[338018313,1726239040137,-369.72010306,0.000129,2]
[338018315,1726239040146,-454.37642247,0.00012973,2]
[338018317,1726239040156,-272.56904325,0.00012999,2]
[338018319,1726239040165,-500.0,0.00012999,2]
[338018321,1726239040175,-152.16178509,0.00012999,2]
[338018323,1726239040183,-500.0,0.00012999,2]
[338018324,1726239040193,-270.59425381,0.00012999,2]
[338018326,1726239040202,-1001.6733,0.00012999,2]
[338018328,1726239040214,-150.0,0.00012999,2]
[338018330,1726239040224,-699665.55507344,0.00013,2]
[338018332,1726239040234,-3391978.65897242,0.00013,2]
[338018334,1726239040244,-1362.88700297,0.00013,2]
[338018336,1726239040254,-1340.744,0.00013,2]
[338018338,1726239040263,-76433.03830728,0.00013,2]
[338018354,1726239040453,-470.78164486,0.00013,2]
[338018355,1726239040466,-1169.94119305,0.00013,2]
[338018356,1726239040479,-604.69310047,0.00013,2]
[338018630,1726239043305,-7187.32168352,0.00013,2]
[338018632,1726239043319,-1758633.00092861,0.00013,2]
[338018936,1726239046453,-277.85891306,0.00013,2]
[338019783,1726239063247,3870.0,0.000102,5]
[338019784,1726239072687,633.3,0.00010924,2]
[338019785,1726239161033,500.0,0.00011164,2]
[338019786,1726239161490,500.0,0.00011164,2]
[338019787,1726239184568,500.0,0.00011164,2]
[338019788,1726239284685,500.0,0.00011164,2]
[338019789,1726239345459,250.0,0.00012158,2]
[338019790,1726239425145,224.31,0.00012088,2]
[338019791,1726239516111,500.0,0.00012105,3]
[338019792,1726239578186,200.0,0.00012082,2]
[338019793,1726239661900,164.06,0.00012066,2]
[338019794,1726239693797,250.0,0.00012066,2]
[338019795,1726239714276,628.39,0.00010176,2]
[338019796,1726239737712,150.0,0.00012116,2]
[338019797,1726239890658,250.0,0.00012101,2]
[338019798,1726239913213,1000.0,0.0001208,2]
[338019799,1726240048097,170.98,0.00010959,2]
[338019800,1726240153677,158.52,0.00012099,2]
[338019801,1726240218759,622.98,0.00010202,2]
[338019802,1726240231982,-299.6900001,0.00012466,2]
[338019803,1726240231993,-323.2899999,0.00012466,2]
[338019804,1726240232002,-150.0,0.000126,2]
[338019805,1726240232013,-150.0,0.000126,2]
[338019806,1726240232022,-3979.74995509,0.00012799,2]
[338019807,1726240232033,-250.0,0.00012799,2]
[338019808,1726240232044,-752.76793986,0.00012799,2]
[338019809,1726240232055,-399.08731197,0.00012799,2]
[338019810,1726240232065,-70.52909222,0.00012799,2]
[338019811,1726240232076,-290.16336359,0.00012799,2]
[338019812,1726240232087,-42.58154419,0.00012799,2]
[338019813,1726240232096,-186.461,0.00012799,2]
[338019814,1726240232105,-150.0,0.00012799,2]
[338019815,1726240232115,-11456.51176564,0.000128,2]
[338019816,1726240232126,-665.10940337,0.000128,2]
[338019817,1726240232137,-382.31751455,0.000128,2]
[338019818,1726240232150,-1618.14931644,0.000128,2]
[338019819,1726240232159,-222.7304,0.000128,2]
[338019820,1726240232169,-11885.455,0.000128,2]
[338019821,1726240232178,-200.0,0.00012833,2]
[338019822,1726240232187,-14700.7197,0.00012862,2]
[338019823,1726240232197,-14977.44,0.0001287,2]
[338019824,1726240232208,-1175.37,0.0001287,2]
[338019825,1726240232218,-17861.89892281,0.0001287,2]
[338019826,1726240232230,-620.58107719,0.0001287,2]
[338019827,1726240232240,-499.99,0.00012873,2]
[338019828,1726240232249,-1666.78687038,0.00012873,2]
[338019829,1726240232265,-2000.0,0.00012873,2]
[338019830,1726240232277,-3213.11785434,0.00012873,2]
[338019831,1726240232287,-2804.7905,0.000129,2]
[338019832,1726240232296,-2125.9198,0.000129,2]
[338019833,1726240232306,-281.7840473,0.000129,2]
[338019834,1726240232316,-151.0330361,0.000129,2]
[338019835,1726240232326,-2525.9,0.000129,2]
[338019836,1726240232335,-606.64,0.000129,2]
[338019837,1726240232345,-885.9,0.000129,2]
[338019838,1726240232355,-1275.48443244,0.000129,2]
[338019839,1726240232364,-300.0,0.000129,2]
[338019840,1726240232374,-1423.68941372,0.000129,2]
[338019841,1726240232385,-389.84087267,0.000129,2]
[338019842,1726240232398,-124.08114361,0.000129,2]
[338019843,1726240232408,-1477.30460639,0.00012962,2]
[338019844,1726240232420,-7517.22981859,0.00012962,2]
[338019845,1726240232431,-5649.28327191,0.00012962,2]
[338019846,1726240232442,-3106.15268631,0.00012962,2]
[338019847,1726240232461,-6708.88506348,0.00012962,2]
[338019848,1726240232472,-312.4205569,0.00012962,2]
[338019849,1726240232484,-875.742,0.00012962,2]
[338019850,1726240232496,-526.45291736,0.00012962,2]
[338019851,1726240232526,-944.79555716,0.00012962,2]
[338019852,1726240232538,-401.44091038,0.00012962,2]
[338019853,1726240232549,-432.000004,0.00012962,2]
[338019854,1726240232560,-13177.92299829,0.00012962,2]
[338019855,1726240232571,-460.19652237,0.00012962,2]
[338019856,1726240232582,-806.59811442,0.00012962,2]
[338019857,1726240232593,-889.15149544,0.00012962,2]
[338019858,1726240232604,-2034.3771887,0.00012962,2]
[338019859,1726240232620,-394.7977753,0.00012776,2]
[338019860,1726240232630,-5825.4012143,0.00012962,2]
[338019861,1726240232639,-76718.032389,0.00012962,2]
[338019862,1726240232648,-1937.61143,0.0001297,2]
[338019863,1726240232657,-500.0,0.00012973,2]
[338019864,1726240232666,-500.0,0.00012973,2]
[338019865,1726240232675,-422.44759378,0.00012973,2]
[338019866,1726240232684,-150.14,0.0001299,2]
[338019867,1726240232694,-190.93802845,0.0001299,2]
[338019868,1726240232703,-150.14,0.0001299,2]
[338019869,1726240232712,-150.14,0.0001299,2]
[338019870,1726240232721,-150.14,0.0001299,2]
[338019871,1726240232730,-16231.66706232,0.00012998,2]
[338019872,1726240232741,-1353.85000891,0.00012998,2]
[338019873,1726240232752,-846.08694448,0.00012998,2]
[338019874,1726240232767,-702.93574009,0.00012998,2]
[338019875,1726240232778,-335.08950845,0.00012998,2]
[338019876,1726240232788,-276.52,0.00012998,2]
[338019881,1726240237965,-5241.13075619,0.000129,2]
[338019884,1726240238203,-2258.86924381,0.000129,2]
[338019885,1726240238212,-986.53586869,0.00012998,2]
[338019886,1726240238221,-169.0686501,0.00012999,2]
[338019887,1726240238231,-413.96560361,0.00012999,2]
[338019888,1726240238240,-500.0,0.00012999,2]
[338019889,1726240238249,-411.77139312,0.00012999,2]
[338019890,1726240238261,-500.0,0.00012999,2]
[338019891,1726240238270,-710742.47909836,0.00013,2]
[338019892,1726240238279,-1709453.86009877,0.00013,2]
[338019893,1726240238290,-710.34553941,0.00013,2]
[338019894,1726240238299,-428.34,0.00013,2]
[338019895,1726240238307,-2000.0,0.00013,2]
[338019896,1726240238316,-200.0,0.00013,2]
[338019897,1726240238325,-912.84482946,0.00013,2]
[338019898,1726240238335,-1905.38059587,0.00013,2]
[338019899,1726240238344,-1668.238151,0.00013,2]
[338019900,1726240238353,-72518.03930128,0.00013,2]
[338019901,1726240238362,-1937.61143,0.00013,2]
[338019902,1726240238372,-1937.61143,0.00013,2]
[338019903,1726240238381,-1937.61144,0.0001306,2]
[338019904,1726240238391,-150.0,0.00013067,2]
[338019905,1726240238402,-153.0,0.00013091,2]
[338019906,1726240238412,-731.56,0.00013096,2]
[338019907,1726240238421,-6879.90472468,0.00013098,2]
[338019908,1726240238431,-422.42,0.000131,2]
[338019909,1726240238440,-422.42,0.000131,2]
[338019910,1726240238450,-422.42,0.000131,2]
[338019911,1726240238459,-422.42,0.000131,2]
[338019912,1726240238469,-422.42,0.000131,2]
[338019913,1726240238478,-844.21,0.000131,2]
[338019914,1726240238489,-5860.0,0.00013106,2]
[338019915,1726240238500,-1145.0,0.00013106,2]
[338019916,1726240238511,-289.873,0.00013106,2]
[338019917,1726240238521,-9310.0,0.00013106,2]
[338019918,1726240238530,-1079.0,0.00013106,2]
[338019919,1726240238539,-2000.0,0.0001313,2]
[338019920,1726240238549,-200.0,0.0001313,2]
[338019921,1726240238558,-1937.61143,0.0001313,2]
[338019922,1726240238568,-281.78404726,0.00013186,2]
[338019923,1726240238577,-226.0,0.000132,2]
[338019924,1726240238586,-359.0,0.000132,2]
[338019925,1726240238595,-1128.0,0.00013232,2]
[338019926,1726240238604,-167.0,0.00013236,2]
[338019927,1726240238613,-2000.0,0.00013261,2]
[338019928,1726240238623,-200.0,0.00013261,2]
[338019929,1726240238633,-152.0,0.00013283,3]
[338019930,1726240238642,-151.03303605,0.000133,2]
[338019932,1726240238651,-1000.0,0.000133,2]
[338019934,1726240238661,-6879.90472468,0.00013323,2]
[338019936,1726240238670,-1261.0,0.00013374,2]
[338019938,1726240238679,-1548.114,0.00013374,2]
[338019940,1726240238688,-451.936,0.00013374,2]
[338019942,1726240238697,-625.92,0.00013374,2]
[338019944,1726240238706,-931.0,0.00013374,2]
[338019946,1726240238715,-557.0,0.00013374,2]
[338019948,1726240238724,-810.0,0.00013374,2]
[338019950,1726240238733,-275.819,0.00013374,2]
[338019952,1726240238743,-1901.0,0.00013374,2]